lending/lending_fUSD_20240110
["ID","MTS","AMOUNT","RATE_DAILY","PERIOD"]
[311093399,1704901896780,-1150.978634,0.00035068,2]
[311093400,1704901896790,-9812.51638,0.00035068,2]
[311093401,1704901896799,-500.0,0.00035068,2]
[311093402,1704901896810,-500.0,0.00035068,2]
[311093403,1704901896820,-580.78,0.00035068,2]
[311093404,1704901896833,-500.0,0.00035068,2]
[311093405,1704901896843,-624.51,0.00035068,2]
[311093406,1704901896853,-769.6,0.00035068,2]
[311093407,1704901896864,-646.9,0.00035068,2]
[311093408,1704901896874,-530.33,0.00035068,2]
[311093409,1704901896884,-815.38,0.00035068,2]
[311093410,1704901896894,-603.48,0.00035068,2]
[311093411,1704901896905,-755.23,0.00035068,2]
[311093412,1704901896915,-500.0,0.00035068,2]
[311093413,1704901896926,-550.99,0.00035068,2]
[311093414,1704901896936,-500.0,0.00035068,2]
[311093415,1704901896946,-500.0,0.00035068,2]
[311093416,1704901896956,-500.0,0.00035068,2]
[311093417,1704901896966,-800.14,0.00035068,2]
[311093418,1704901896976,-707.25,0.00035068,2]
[311093419,1704901896988,-520.54,0.00035068,2]
[311093420,1704901896997,-500.0,0.00035068,2]
[311093421,1704901897011,-672.75,0.00035068,2]
[311093422,1704901897022,-528.46,0.00035068,2]
[311093423,1704901897034,-1198.47,0.00035068,2]
[311093424,1704901897043,-632.59,0.00035068,2]
[311093425,1704901897052,-1056.6,0.00035068,2]
[311093426,1704901897062,-586.76,0.00035068,2]
[311093427,1704901897072,-731.92,0.00035068,2]
[311093428,1704901897082,-9210.75,0.00035068,2]
[311093429,1704901897094,-809.77,0.00035068,2]
[311093430,1704901897104,-663.73,0.00035068,2]
[311093431,1704901897114,-662.54,0.00035068,2]
[311093432,1704901897124,-500.0,0.00035068,2]
[311093433,1704901897134,-6627.1,0.00035068,2]
[311093434,1704901897143,-534.71,0.00035068,2]
[311093435,1704901897153,-1891.17,0.00035068,2]
[311093436,1704901897162,-1534.85,0.00035068,2]
[311093437,1704901897173,-500.0,0.00035068,2]
[311093438,1704901897183,-2924.88,0.00035068,2]
[311093439,1704901897193,-765.82,0.00035068,2]
[311093440,1704901897203,-218.9295251,0.00035068,2]
[311093441,1704901897214,-500.0,0.00035068,2]
[311093442,1704901897224,-3449.62,0.00035068,2]
[311093443,1704901897234,-750.66,0.00035068,2]
[311093444,1704901897244,-579.7,0.00035068,2]
[311093445,1704901897254,-959.31,0.00035068,2]
[311093446,1704901897264,-7311.05,0.00035068,2]
[311093447,1704901897274,-1065.45,0.00035068,2]
[311093448,1704901897286,-1035.64,0.00035068,2]
[311093449,1704901897295,-500.0,0.00035068,2]
[311093450,1704901897306,-2187.38,0.00035068,2]
[311093451,1704901897316,-500.0,0.00035068,2]
[311093452,1704901897325,-702.32,0.00035068,2]
[311093453,1704901897335,-500.0,0.00035068,2]
[311093454,1704901897345,-500.0,0.00035068,2]
[311093455,1704901897354,-1173.1,0.00035068,2]
[311093456,1704901897364,-977.57,0.00035068,2]
[311093457,1704901897374,-500.0,0.00035068,2]
[311093458,1704901897386,-500.0,0.00035068,2]
[311093459,1704901897396,-905.27,0.00035068,2]
[311093460,1704901897405,-539.72,0.00035068,2]
[311093461,1704901897415,-2184.67,0.00035068,2]
[311093462,1704901897425,-2851.32,0.00035068,2]
[311093463,1704901897436,-1084.11,0.00035068,2]
[311093464,1704901897446,-554.29,0.00035068,2]
[311093465,1704901897455,-743.97,0.00035068,2]
[311093466,1704901897465,-500.0,0.00035068,2]
[311093467,1704901897475,-652.69,0.00035068,2]
[311093468,1704901897485,-2290.02,0.00035068,2]
[311093469,1704901897496,-3550.06,0.00035068,2]
[311093470,1704901897506,-500.0,0.00035068,2]
[311093471,1704901897516,-500.0,0.00035068,2]
[311093472,1704901897528,-741.58,0.00035068,2]
[311093473,1704901897539,-2468.23,0.00035068,2]
[311093474,1704901897549,-1013.12,0.00035068,2]
[311093475,1704901897558,-2755.49,0.00035068,2]
[311093476,1704901897569,-1367.5,0.00035068,2]
[311093477,1704901897580,-523.18,0.00035068,2]
[311093478,1704901897590,-606.41,0.00035068,2]
[311093479,1704901897600,-1214.0,0.00035068,2]
[311093480,1704901897610,-1010.49,0.00035068,2]
[311093481,1704901897620,-1052.82,0.00035068,2]
[311093482,1704901897629,-1111.49,0.00035068,2]
[311093483,1704901897639,-517.3,0.00035068,2]
[311093484,1704901897649,-22537.3,0.00035068,2]
[311093485,1704901897658,-652.84,0.00035068,2]
[311093486,1704901897668,-1027.93,0.00035068,2]
[311093487,1704901897678,-619.25,0.00035068,2]
[311093488,1704901897688,-540.69,0.00035068,2]
[311093489,1704901897697,-531.22,0.00035068,2]
[311093490,1704901897707,-949.96,0.00035068,2]
[311093491,1704901897717,-822.79,0.00035068,2]
[311093492,1704901897728,-500.0,0.00035068,2]
[311093493,1704901897738,-561.93,0.00035068,2]
[311093494,1704901897749,-841.87,0.00035068,2]
[311093495,1704901897759,-500.0,0.00035068,2]
[311093496,1704901897772,-500.0,0.00035068,2]
[311093497,1704901897787,-4149.02,0.00035068,2]
[311093498,1704901897797,-1144.17,0.00035068,2]
[311093499,1704901897807,-1384.54,0.00035068,2]
[311093500,1704901897817,-2853.73,0.00035068,2]
[311093501,1704901897828,-1585.1,0.00035068,2]
[311093502,1704901897838,-565.73,0.00035068,2]
[311093503,1704901897848,-518.12,0.00035068,2]
[311093504,1704901897858,-546.42,0.00035068,2]
[311093505,1704901897868,-5771.71,0.00035068,2]
[311093506,1704901897878,-1094.06,0.00035068,2]
[311093507,1704901897888,-426.46159227,0.00035068,2]
[311093508,1704901897899,-1075.13,0.00035068,2]
[311093509,1704901897910,-500.0,0.00035068,2]
[311093510,1704901897920,-1529.8,0.00035068,2]
[311093511,1704901897929,-704.92,0.00035068,2]
[311093512,1704901897940,-6554.84,0.00035068,2]
[311093513,1704901897949,-500.0,0.00035068,2]
[311093514,1704901897959,-515.73,0.00035068,2]
[311093515,1704901897968,-606.81,0.00035068,2]
[311093516,1704901897979,-3847.89,0.00035068,2]
[311093517,1704901897990,-1873.06,0.00035068,2]
[311093518,1704901897999,-1237.27,0.00035068,2]
[311093519,1704901898011,-722.18,0.00035068,2]
[311093520,1704901898021,-682.55,0.00035068,2]
[311093521,1704901898034,-890.2,0.00035068,2]
[311093522,1704901898043,-1162.53,0.00035068,2]
[311093523,1704901898053,-1171.63,0.00035068,2]
[311093524,1704901898062,-838.5,0.00035068,2]
[311093525,1704901898072,-1201.37,0.00035068,2]
[311093526,1704901898082,-589.12,0.00035068,2]
[311093527,1704901898093,-1149.89,0.00035068,2]
[311093528,1704901898103,-1798.18,0.00035068,2]
[311093529,1704901898113,-596.51,0.00035068,2]
[311093530,1704901898124,-1893.93,0.00035068,2]
[311093531,1704901898133,-1002.66,0.00035068,2]
[311093532,1704901898143,-860.47,0.00035068,2]
[311093533,1704901898154,-500.0,0.00035068,2]
[311093534,1704901898163,-633.99,0.00035068,2]
[311093535,1704901898175,-542.38,0.00035068,2]
[311093536,1704901898187,-3386.41,0.00035068,2]
[311093537,1704901898197,-500.0,0.00035068,2]
[311093538,1704901898207,-756.19,0.00035068,2]
[311093539,1704901898217,-457.21470423,0.00035068,2]
[311093540,1704901898227,-3242.4,0.00035068,2]
[311093541,1704901898237,-816.45,0.00035068,2]
[311093542,1704901898248,-1925.49640363,0.00035088,2]
[311093543,1704901898259,-84238.70858312,0.0003509,2]
[311093544,1704901898270,-4135.17402628,0.00035141,2]
[311093545,1704901898283,-247.22115209,0.00035156,2]
[311093546,1704901898293,-151.0,0.00035218,2]
[311093547,1704901898302,-2860.0,0.0003523,30]
[311093548,1704901898313,-2860.0,0.0003523,60]
[311093549,1704901898323,-500.0,0.00035282,2]
[311093550,1704901898334,-1965.990009,0.000353,3]
[311093551,1704901898345,-3000.0,0.000353,2]
[311093552,1704901898355,-200.0,0.000353,2]
[311093553,1704901898364,-300.0,0.000353,9]
[311093554,1704901898375,-304.949637,0.000353,3]
[311093555,1704901898384,-992.7548,0.000353,2]
[311093556,1704901898394,-207.210858,0.00035342,7]
[311093557,1704901898405,-207.210858,0.00035342,7]
[311093558,1704901898416,-263.279856,0.00035342,7]
[311093559,1704901898427,-263.279856,0.00035342,7]
[311093560,1704901898437,-151.0,0.00035342,7]
[311093561,1704901898449,-234.48,0.00035342,7]
[311093562,1704901898459,-3903.948256,0.00035342,7]
[311093563,1704901898469,-3903.948256,0.00035342,7]
[311093564,1704901898479,-20969.423965,0.00035342,2]
[311093565,1704901898489,-167015.305164,0.00035342,2]
[311093566,1704901898499,-649.73,0.00035342,2]
[311093567,1704901898509,-500.0,0.00035342,2]
[311093568,1704901898518,-1150.978633,0.00035342,2]
[311093569,1704901898529,-2071.76154,0.00035342,2]
[311093570,1704901898538,-9812.51638,0.00035342,2]
[311093571,1704901898548,-1611.370087,0.00035342,2]
[311093572,1704901898558,-13737.522932,0.00035342,2]
[311093573,1704901898567,-500.0,0.00035342,2]
[311093574,1704901898577,-500.0,0.00035342,2]
[311093575,1704901898587,-580.78,0.00035342,2]
[311093576,1704901898597,-500.0,0.00035342,2]
[311093577,1704901898607,-624.51,0.00035342,2]
[311093578,1704901898617,-769.6,0.00035342,2]
[311093579,1704901898627,-646.9,0.00035342,2]
[311093580,1704901898637,-530.33,0.00035342,2]
[311093581,1704901898647,-815.38,0.00035342,2]
[311093582,1704901898657,-603.48,0.00035342,2]
[311093583,1704901898668,-755.23,0.00035342,2]
[311093584,1704901898678,-384.61666177,0.00035342,2]
[311093585,1704901898689,-550.99,0.00035342,2]
[311093586,1704901898700,-500.0,0.00035342,2]
[311093587,1704901898710,-500.0,0.00035342,2]
[311093588,1704901898721,-500.0,0.00035342,2]
[311093589,1704901898732,-800.14,0.00035342,2]
[311093590,1704901898743,-707.25,0.00035342,2]
[311093591,1704901898754,-520.54,0.00035342,2]
[311093592,1704901898766,-500.0,0.00035342,2]
[311093593,1704901898779,-672.75,0.00035342,2]
[311093594,1704901898791,-528.46,0.00035342,2]
[311093595,1704901898802,-1198.47,0.00035342,2]
[311093596,1704901898813,-632.59,0.00035342,2]
[311093597,1704901898823,-1056.6,0.00035342,2]
[311093598,1704901898835,-586.76,0.00035342,2]
[311093599,1704901898846,-731.92,0.00035342,2]
[311093600,1704901898856,-9210.75,0.00035342,2]
[311093601,1704901898867,-809.77,0.00035342,2]
[311093602,1704901898878,-663.73,0.00035342,2]
[311093603,1704901898888,-662.54,0.00035342,2]
[311093604,1704901898898,-500.0,0.00035342,2]
[311093605,1704901898909,-6627.1,0.00035342,2]
[311093606,1704901898919,-534.71,0.00035342,2]
[311093607,1704901898930,-1891.17,0.00035342,2]
[311093608,1704901898940,-1534.85,0.00035342,2]
[311093609,1704901898951,-500.0,0.00035342,2]
[311093610,1704901898961,-2924.88,0.00035342,2]
[311093611,1704901898971,-765.82,0.00035342,2]
[311093612,1704901898983,-500.0,0.00035342,2]
[311093613,1704901898995,-3449.62,0.00035342,2]
[311093614,1704901899005,-750.66,0.00035342,2]
[311093615,1704901899015,-579.7,0.00035342,2]
[311093616,1704901899025,-959.31,0.00035342,2]
[311093617,1704901899037,-7311.05,0.00035342,2]
[311093618,1704901899046,-1065.45,0.00035342,2]
[311093619,1704901899057,-1035.64,0.00035342,2]
[311093620,1704901899067,-500.0,0.00035342,2]
[311093621,1704901899077,-2187.38,0.00035342,2]
[311093622,1704901899087,-500.0,0.00035342,2]
[311093623,1704901899097,-702.32,0.00035342,2]
[311093624,1704901899107,-500.0,0.00035342,2]
[311093625,1704901899117,-615.46840733,0.00035342,2]
[311093626,1704901899127,-1173.1,0.00035342,2]
[311093627,1704901899136,-977.57,0.00035342,2]
[311093628,1704901899146,-500.0,0.00035342,2]
[311093629,1704901899157,-500.0,0.00035342,2]
[311093630,1704901899168,-905.27,0.00035342,2]
[311093631,1704901899178,-539.72,0.00035342,2]
[311093632,1704901899188,-2184.67,0.00035342,2]
[311093633,1704901899199,-2851.32,0.00035342,2]
[311093634,1704901899209,-1084.11,0.00035342,2]
[311093635,1704901899219,-554.29,0.00035342,2]
[311093636,1704901899229,-743.97,0.00035342,2]
[311093637,1704901899239,-652.69,0.00035342,2]
[311093638,1704901899249,-500.0,0.00035342,2]
[311093639,1704901899258,-2290.02,0.00035342,2]
[311093640,1704901899268,-3550.06,0.00035342,2]
[311093641,1704901899280,-572.97634173,0.00035342,2]
[311093642,1704901899290,-500.0,0.00035342,2]
[311093643,1704901899299,-2468.23,0.00035342,2]
[311093644,1704901899310,-741.58,0.00035342,2]
[311093645,1704901899320,-1013.12,0.00035342,2]
[311093646,1704901899330,-2755.49,0.00035342,2]
[311093647,1704901899340,-1367.5,0.00035342,2]
[311093648,1704901899350,-523.18,0.00035342,2]
[311093649,1704901899360,-606.41,0.00035342,2]
[311093650,1704901899370,-1214.0,0.00035342,2]
[311093651,1704901899380,-1010.49,0.00035342,2]
[311093652,1704901899389,-1052.82,0.00035342,2]
[311093653,1704901899399,-1111.49,0.00035342,2]
[311093654,1704901899409,-517.3,0.00035342,2]
[311093655,1704901899419,-22537.3,0.00035342,2]
[311093656,1704901899429,-652.84,0.00035342,2]
[311093657,1704901899439,-1027.93,0.00035342,2]
[311093658,1704901899449,-619.25,0.00035342,2]
[311093659,1704901899459,-540.69,0.00035342,2]
[311093660,1704901899470,-531.22,0.00035342,2]
[311093661,1704901899480,-949.96,0.00035342,2]
[311093662,1704901899491,-822.79,0.00035342,2]
[311093663,1704901899502,-500.0,0.00035342,2]
[311093664,1704901899513,-561.93,0.00035342,2]
[311093665,1704901899524,-841.87,0.00035342,2]
[311093666,1704901899539,-500.0,0.00035342,2]
[311093667,1704901899549,-500.0,0.00035342,2]
[311093668,1704901899559,-4149.02,0.00035342,2]
[311093669,1704901899570,-1144.17,0.00035342,2]
[311093670,1704901899580,-1384.54,0.00035342,2]
[311093671,1704901899595,-2853.73,0.00035342,2]
[311093672,1704901899605,-1585.1,0.00035342,2]
[311093673,1704901899616,-565.73,0.00035342,2]
[311093674,1704901899627,-518.12,0.00035342,2]
[311093675,1704901899637,-546.42,0.00035342,2]
[311093676,1704901899647,-5771.71,0.00035342,2]
[311093677,1704901899658,-1094.06,0.00035342,2]
[311093678,1704901899668,-1075.13,0.00035342,2]
[311093679,1704901899678,-500.0,0.00035342,2]
[311093680,1704901899689,-1529.8,0.00035342,2]
[311093681,1704901899700,-704.92,0.00035342,2]
[311093682,1704901899712,-6554.84,0.00035342,2]
[311093683,1704901899722,-500.0,0.00035342,2]
[311093684,1704901899733,-515.73,0.00035342,2]
[311093685,1704901899744,-606.81,0.00035342,2]
[311093686,1704901899755,-3847.89,0.00035342,2]
[311093687,1704901899766,-1873.06,0.00035342,2]
[311093688,1704901899777,-1237.27,0.00035342,2]
[311093689,1704901899789,-722.18,0.00035342,2]
[311093690,1704901899800,-682.55,0.00035342,2]
[311093691,1704901899811,-890.2,0.00035342,2]
[311093692,1704901899822,-1162.53,0.00035342,2]
[311093693,1704901899832,-1171.63,0.00035342,2]
[311093694,1704901899844,-838.5,0.00035342,2]
[311093695,1704901899855,-1201.37,0.00035342,2]
[311093696,1704901899866,-589.12,0.00035342,2]
[311093697,1704901899876,-1149.89,0.00035342,2]
[311093698,1704901899887,-1798.18,0.00035342,2]
[311093699,1704901899898,-596.51,0.00035342,2]
[311093700,1704901899909,-1893.93,0.00035342,2]
[311093701,1704901899919,-1002.66,0.00035342,2]
[311093702,1704901899931,-860.47,0.00035342,2]
[311093703,1704901899942,-500.0,0.00035342,2]
[311093704,1704901899952,-633.99,0.00035342,2]
[311093705,1704901899963,-542.38,0.00035342,2]
[311093706,1704901899974,-3386.41,0.00035342,2]
[311093707,1704901899987,-500.0,0.00035342,2]
[311093708,1704901899998,-756.19,0.00035342,2]
[311093709,1704901900008,-3242.4,0.00035342,2]
[311093710,1704901900019,-816.45,0.00035342,2]
[311093711,1704901900032,-210.0,0.0003546,2]
[311093712,1704901900044,-4135.17402628,0.00035473,2]
[311093713,1704901900054,-1000.0,0.000355,6]
[311093714,1704901900066,-25000.0,0.000355,2]
[311093715,1704901900077,-157.61512675,0.000355,30]
[311093716,1704901900087,-300.0,0.000355,9]
[311093717,1704901900097,-500.0,0.00035507,7]
[311093718,1704901900107,-500.0,0.00035507,7]
[311093719,1704901900117,-500.0,0.00035516,2]
[311093720,1704901900128,-150.0,0.0003554,2]
[311093721,1704901900138,-417.33,0.00035579,2]
[311093722,1704901900149,-313.77,0.00035579,2]
[311093723,1704901900160,-247.22115209,0.00035599,2]
[311093724,1704901900170,-23965.055961,0.000356,2]
[311093725,1704901900180,-190874.634473,0.000356,2]
[311093726,1704901900190,-1315.404153,0.000356,2]
[311093727,1704901900201,-2367.727475,0.000356,2]
[311093728,1704901900211,-11214.304434,0.000356,2]
[311093729,1704901900222,-1841.565814,0.000356,2]
[311093730,1704901900232,-15700.026208,0.000356,2]
[311093731,1704901900243,-200.0,0.000356,11]
[311093732,1704901900253,-1000.0,0.000356,2]
[311093733,1704901900263,-151.0,0.000356,7]
[311093734,1704901900274,-155.24585568,0.00035614,4]
[311093735,1704901900289,-1164.78,0.00035616,2]
[311093736,1704901900299,-649.73,0.00035616,2]
[311093737,1704901900310,-500.0,0.00035616,2]
[311093738,1704901900320,-500.0,0.00035616,2]
[311093739,1704901900331,-500.0,0.00035616,2]
[311093740,1704901900342,-580.78,0.00035616,2]
[311093741,1704901900353,-150.0,0.00035616,2]
[311093742,1704901900363,-300.0,0.00035616,7]
[311093743,1704901900374,-479.35858764,0.00035616,12]
[311093744,1704901900385,-500.0,0.00035616,2]
[311093745,1704901900395,-624.51,0.00035616,2]
[311093746,1704901900406,-769.6,0.00035616,2]
[311093747,1704901900418,-646.9,0.00035616,2]
[311093748,1704901900428,-530.33,0.00035616,2]
[311093749,1704901900438,-815.38,0.00035616,2]
[311093750,1704901900449,-603.48,0.00035616,2]
[311093751,1704901900460,-755.23,0.00035616,2]
[311093752,1704901900471,-868.609574,0.00035616,2]
[311093753,1704901900482,-868.609574,0.00035616,2]
[311093754,1704901900492,-868.609574,0.00035616,2]
[311093755,1704901900504,-868.609574,0.00035616,2]
[311093756,1704901900515,-868.609574,0.00035616,2]
[311093757,1704901900526,-868.609574,0.00035616,2]
[311093758,1704901900540,-868.609574,0.00035616,2]
[311093759,1704901900551,-868.609574,0.00035616,2]
[311093760,1704901900562,-868.609574,0.00035616,2]
[311093761,1704901900572,-868.609574,0.00035616,2]
[311093762,1704901900583,-868.609574,0.00035616,2]
[311093763,1704901900594,-868.609574,0.00035616,2]
[311093764,1704901900604,-868.609574,0.00035616,2]
[311093765,1704901900614,-868.609574,0.00035616,2]
[311093766,1704901900625,-868.609574,0.00035616,2]
[311093767,1704901900635,-868.609574,0.00035616,2]
[311093768,1704901900646,-868.609574,0.00035616,2]
[311093769,1704901900657,-868.609574,0.00035616,2]
[311093770,1704901900667,-868.609574,0.00035616,2]
[311093771,1704901900677,-868.609574,0.00035616,2]
[311093772,1704901900687,-868.609574,0.00035616,2]
[311093773,1704901900697,-868.609574,0.00035616,2]
[311093774,1704901900707,-868.609574,0.00035616,2]
[311093775,1704901900718,-868.609574,0.00035616,2]
[311093776,1704901900727,-868.609583,0.00035616,2]
[311093777,1704901900739,-550.99,0.00035616,2]
[311093778,1704901900749,-500.0,0.00035616,2]
[311093779,1704901900761,-500.0,0.00035616,2]
[311093780,1704901900771,-246.55107818,0.00035616,2]
[311093781,1704901900785,-800.14,0.00035616,2]
[311093782,1704901900795,-707.25,0.00035616,2]
[311093783,1704901900806,-520.54,0.00035616,2]
[311093784,1704901900816,-500.0,0.00035616,2]
[311093785,1704901900827,-672.75,0.00035616,2]
[311093786,1704901900839,-528.46,0.00035616,2]
[311093787,1704901900850,-1198.47,0.00035616,2]
[311093788,1704901900860,-632.59,0.00035616,2]
[311093789,1704901900870,-1056.6,0.00035616,2]
[311093790,1704901900882,-500.0,0.00035616,2]
[311093791,1704901900893,-586.76,0.00035616,2]
[311093792,1704901901115,-500.0,0.00035616,2]
[311093793,1704901901127,-500.0,0.00035616,2]
[311093794,1704901901138,-500.0,0.00035616,2]
[311093795,1704901901148,-500.0,0.00035616,2]
[311093796,1704901901159,-500.0,0.00035616,2]
[311093797,1704901901170,-731.92,0.00035616,2]
[311093798,1704901901180,-500.0,0.00035616,2]
[311093799,1704901901191,-500.0,0.00035616,2]
[311093800,1704901901201,-500.0,0.00035616,2]
[311093801,1704901901212,-500.0,0.00035616,2]
[311093802,1704901901223,-500.0,0.00035616,2]
[311093803,1704901901234,-500.0,0.00035616,2]
[311093804,1704901901244,-500.0,0.00035616,2]
[311093805,1704901901255,-500.0,0.00035616,2]
[311093806,1704901901265,-500.0,0.00035616,2]
[311093807,1704901901275,-500.0,0.00035616,2]
[311093808,1704901901286,-500.0,0.00035616,2]
[311093809,1704901901296,-500.0,0.00035616,2]
[311093810,1704901901306,-500.0,0.00035616,2]
[311093811,1704901901317,-500.0,0.00035616,2]
[311093812,1704901901327,-9210.75,0.00035616,2]
[311093813,1704901901337,-809.77,0.00035616,2]
[311093814,1704901901348,-663.73,0.00035616,2]
[311093815,1704901901358,-662.54,0.00035616,2]
[311093816,1704901901367,-500.0,0.00035616,2]
[311093817,1704901901377,-534.71,0.00035616,2]
[311093818,1704901901387,-6627.1,0.00035616,2]
[311093819,1704901901397,-1891.17,0.00035616,2]
[311093820,1704901901406,-1534.85,0.00035616,2]
[311093821,1704901901417,-500.0,0.00035616,2]
[311093822,1704901901427,-2924.88,0.00035616,2]
[311093823,1704901901437,-765.82,0.00035616,2]
[311093824,1704901901447,-500.0,0.00035616,2]
[311093825,1704901901457,-3449.62,0.00035616,2]
[311093826,1704901901468,-750.66,0.00035616,2]
[311093827,1704901901478,-579.7,0.00035616,2]
[311093828,1704901901488,-959.31,0.00035616,2]
[311093829,1704901901498,-7311.05,0.00035616,2]
[311093830,1704901901509,-1065.45,0.00035616,2]
[311093831,1704901901520,-1035.64,0.00035616,2]
[311093832,1704901901533,-500.0,0.00035616,2]
[311093833,1704901901543,-2187.38,0.00035616,2]
[311093834,1704901901552,-624.06226876,0.00035616,2]
[311093835,1704901901562,-702.32,0.00035616,2]
[311093836,1704901901571,-191.11851432,0.00035616,2]
[311093837,1704901901581,-1173.1,0.00035616,2]
[311093838,1704901901591,-977.57,0.00035616,2]
[311093839,1704901901601,-261.54059498,0.00035616,2]
[311093840,1704901901610,-487.24,0.00035616,2]
[311093841,1704901901620,-905.27,0.00035616,2]
[311093842,1704901901629,-539.72,0.00035616,2]
[311093843,1704901901639,-2184.67,0.00035616,2]
[311093844,1704901901649,-2851.32,0.00035616,2]
[311093845,1704901901659,-1084.11,0.00035616,2]
[311093846,1704901901668,-554.29,0.00035616,2]
[311093847,1704901901677,-743.97,0.00035616,2]
[311093848,1704901901687,-652.69,0.00035616,2]
[311093849,1704901901697,-301.07630974,0.00035616,2]
[311093850,1704901901707,-2290.02,0.00035616,2]
[311093851,1704901901717,-3550.06,0.00035616,2]
[311093852,1704901901727,-443.93328597,0.00035616,2]
[311093853,1704901901737,-2468.23,0.00035616,2]
[311093854,1704901901747,-741.58,0.00035616,2]
[311093855,1704901901757,-1013.12,0.00035616,2]
[311093856,1704901901767,-2755.49,0.00035616,2]
[311093857,1704901901776,-1367.5,0.00035616,2]
[311093858,1704901901789,-523.18,0.00035616,2]
[311093859,1704901901799,-606.41,0.00035616,2]
[311093860,1704901901809,-1214.0,0.00035616,2]
[311093861,1704901901818,-1010.49,0.00035616,2]
[311093862,1704901901828,-1052.82,0.00035616,2]
[311093863,1704901901837,-1111.49,0.00035616,2]
[311093864,1704901901846,-517.3,0.00035616,2]
[311093865,1704901901856,-652.84,0.00035616,2]
[311093866,1704901901865,-22537.3,0.00035616,2]
[311093867,1704901901875,-1027.93,0.00035616,2]
[311093868,1704901901884,-619.25,0.00035616,2]
[311093869,1704901901893,-540.69,0.00035616,2]
[311093870,1704901901903,-531.22,0.00035616,2]
[311093871,1704901901912,-949.96,0.00035616,2]
[311093872,1704901901922,-822.79,0.00035616,2]
[311093873,1704901901931,-561.93,0.00035616,2]
[311093874,1704901901941,-500.0,0.00035616,2]
[311093875,1704901901950,-841.87,0.00035616,2]
[311093876,1704901901960,-500.0,0.00035616,2]
[311093877,1704901901970,-4149.02,0.00035616,2]
[311093878,1704901901979,-396.05156286,0.00035616,2]
[311093879,1704901901989,-1144.17,0.00035616,2]
[311093880,1704901902003,-1384.54,0.00035616,2]
[311093881,1704901902012,-2853.73,0.00035616,2]
[311093882,1704901902022,-1585.1,0.00035616,2]
[311093883,1704901902034,-565.73,0.00035616,2]
[311093884,1704901902045,-518.12,0.00035616,2]
[311093885,1704901902055,-546.42,0.00035616,2]
[311093886,1704901902065,-5771.71,0.00035616,2]
[311093887,1704901902076,-1094.06,0.00035616,2]
[311093888,1704901902086,-1075.13,0.00035616,2]
[311093889,1704901902095,-500.0,0.00035616,2]
[311093890,1704901902105,-1529.8,0.00035616,2]
[311093891,1704901902114,-704.92,0.00035616,2]
[311093892,1704901902124,-6554.84,0.00035616,2]
[311093893,1704901902134,-500.0,0.00035616,2]
[311093894,1704901902144,-515.73,0.00035616,2]
[311093895,1704901902153,-606.81,0.00035616,2]
[311093896,1704901902162,-3847.89,0.00035616,2]
[311093897,1704901902172,-1873.06,0.00035616,2]
[311093898,1704901902182,-1237.27,0.00035616,2]